fUST/lending_fUST_20240515
["ID","MTS","AMOUNT","RATE_DAILY","PERIOD"]
[327064957,1715773841218,-500.0,0.00021917,2]
[327064958,1715773841228,-500.0,0.00021917,2]
[327064959,1715773841237,-501.90489034,0.00021917,2]
[327064960,1715773841247,-500.76567302,0.00021917,2]
[327064961,1715773841256,-500.0,0.00021917,2]
[327064962,1715773841266,-500.0,0.00021917,2]
[327064963,1715773841275,-700.47,0.00021917,2]
[327064964,1715773841285,-500.0,0.00021917,2]
[327064965,1715773841295,-500.0,0.00021917,2]
[327064966,1715773841304,-504.85660073,0.00021917,2]
[327064967,1715773841314,-501.62690073,0.00021917,2]
[327064968,1715773841324,-236.66931354,0.00021917,2]
[327064969,1715773841334,-1351.63,0.00021917,2]
[327064970,1715773841344,-500.0,0.00021917,2]
[327064971,1715773841354,-500.0,0.00021917,2]
[327064972,1715773841363,-537.62254446,0.00021917,2]
[327064973,1715773841373,-501.94676053,0.00021917,2]
[327064974,1715773841383,-526.99805668,0.00021917,2]
[327064975,1715773841392,-510.13763815,0.00021917,2]
[327064976,1715773841402,-500.0,0.00021917,2]
[327064977,1715773841411,-1031.9,0.00021917,2]
[327064978,1715773841421,-542.04,0.00021917,2]
[327064979,1715773841430,-501.26744796,0.00021917,2]
[327064980,1715773841440,-500.0,0.00021917,2]
[327064981,1715773841449,-1668.18,0.00021917,2]
[327064982,1715773841458,-151.0,0.00021917,2]
[327064983,1715773841468,-500.0,0.00021917,2]
[327064984,1715773841478,-443.18707844,0.00021917,2]
[327064985,1715773841487,-151.0,0.00021917,2]
[327064986,1715773841497,-521.10256255,0.00021917,2]
[327064987,1715773841506,-515.18508535,0.00021917,2]
[327064988,1715773841516,-567.76,0.00021917,2]
[327064989,1715773841525,-500.0,0.00021917,2]
[327064990,1715773841535,-677.88,0.00021917,2]
[327064991,1715773841544,-151.0,0.00021917,2]
[327064992,1715773841554,-940.15,0.00021917,2]
[327064993,1715773841563,-500.0,0.00021917,2]
[327064994,1715773841572,-1019.09,0.00021917,2]
[327064995,1715773841581,-500.0,0.00021917,2]
[327064996,1715773841591,-620.61732533,0.00021917,2]
[327064997,1715773841600,-500.0,0.00021917,2]
[327064998,1715773841609,-500.0,0.00021917,2]
[327064999,1715773841619,-502.07433045,0.00021917,2]
[327065000,1715773841628,-567.11318983,0.00021917,2]
[327065001,1715773841637,-500.0,0.00021917,2]
[327065002,1715773841647,-500.0,0.00021917,2]
[327065003,1715773841656,-522.32416653,0.00021917,2]
[327065004,1715773841668,-803.8,0.00021917,2]
[327065005,1715773841676,-500.0,0.00021917,2]
[327065006,1715773841685,-500.0,0.00021917,2]
[327065007,1715773841694,-500.0,0.00021917,2]
[327065008,1715773841703,-500.7520253,0.00021917,2]
[327065009,1715773841712,-462.90308601,0.00021917,2]
[327065010,1715773841722,-500.0,0.00021917,2]
[327065011,1715773841731,-513.63987884,0.00021917,2]
[327065012,1715773841741,-467.65846421,0.00021917,2]
[327065013,1715773841751,-545.98418657,0.00021917,2]
[327065014,1715773841760,-500.0,0.00021917,2]
[327065015,1715773841769,-500.0,0.00021917,2]
[327065016,1715773841779,-500.0,0.00021917,2]
[327065017,1715773841788,-319.23693952,0.00021917,2]
[327065018,1715773841797,-632.1,0.00021917,2]
[327065019,1715773841806,-500.0,0.00021917,2]
[327065020,1715773841815,-8771.98614165,0.00021917,2]
[327065021,1715773841853,-416.64966704,0.00021917,2]
[327065062,1715773843715,-1356.26636558,0.00021917,2]
[327065063,1715773843727,-4653.93782573,0.00021917,2]
[327065064,1715773843737,-500.0,0.00021917,2]
[327065065,1715773843746,-500.0,0.00021917,2]
[327065076,1715773843889,-527.4,0.00021917,2]
[327065078,1715773843900,-544.42242366,0.00021917,2]
[327065079,1715773843911,-675.5,0.00021917,2]
[327065080,1715773843920,-500.0,0.00021917,2]
[327065081,1715773843929,-912.48,0.00021917,2]
[327065082,1715773843939,-182.283503,0.00021917,2]
[327065083,1715773843948,-500.0,0.00021917,2]
[327065084,1715773843957,-500.0,0.00021917,2]
[327065085,1715773843967,-327.22815664,0.00021917,2]
[327065086,1715773843983,-4453.68184336,0.00021917,2]
[327065087,1715773843992,-513.21714705,0.00021917,2]
[327065088,1715773844001,-182.283503,0.00021917,2]
[327065089,1715773844011,-3384.51985083,0.00021917,2]
[327065096,1715773846600,-500.0,0.00021909,2]
[327065097,1715773846610,-480.60678312,0.00021916,2]
[327065098,1715773846622,-210.47759823,0.00021916,2]
[327065099,1715773846632,-260.89596155,0.00021917,2]
[327065100,1715774146927,3432.21125564,0.00018,2]
[327065101,1715774217356,154.86062544,0.00018,2]
[327065102,1715774229205,154.86062544,0.00018,2]
[327065103,1715774249615,154.90266124,0.00018,2]
[327065104,1715774254562,684.29354561,0.00017999,2]
[327065112,1715774430483,709.0884584,9.999e-05,2]
[327065115,1715774466164,835.08477091,9.999e-05,2]
[327065120,1715774563420,930.94102569,0.00014,2]
[327065122,1715774833253,230.1422143,0.00014,2]
[327065123,1715774986307,1614.0,0.00025,60]
[327065125,1715775011217,24900.0,0.00017944,2]
[327065158,1715775031719,-684.29354561,0.00018269,2]
[327065159,1715775031730,-1051.5178865,0.0001827,2]
[327065181,1715775037865,-1062.09804296,0.0001827,2]
[327065182,1715775037875,-930.94102569,0.00018271,2]
[327065183,1715775037884,-154.87609912,0.00018272,2]
[327065184,1715775037894,-486.195405,0.00018277,2]
[327065185,1715775037903,-1173.83946746,0.000189,2]
[327065186,1715775037912,-161.64183638,0.0001903,2]
[327065187,1715775037922,-180.637194,0.00019178,2]
[327065188,1715775037931,-2096.86118133,0.00019816,2]
[327065226,1715775040054,-5241.89848587,0.00019816,2]
[327065732,1715775046270,-498.542,0.00019816,2]
[327066057,1715775064727,100.0,9.999e-05,2]
[327066058,1715775064751,6859.20597892,9.999e-05,2]
[327066059,1715775079622,410.26306288,9.999e-05,2]
[327066060,1715775090182,189.80933307,0.00018,2]
[327066062,1715775168450,5997.51422066,9.999e-05,2]
[327066063,1715775197494,154.82968734,9.999e-05,2]
[327066064,1715775213652,284.88862026,9.999e-05,2]
[327066065,1715775219314,1884.51859878,9.999e-05,2]
[327066066,1715775221705,522.32566307,9.999e-05,2]
[327066067,1715775221832,154.82968734,9.999e-05,2]
[327066068,1715775222802,154.82968734,9.999e-05,2]
[327066069,1715775223670,242.08726604,9.999e-05,2]
[327066070,1715775225715,617.05276743,9.999e-05,2]
[327066071,1715775226591,702.19428712,9.999e-05,2]
[327066072,1715775227439,154.82968734,0.0001,2]
[327066073,1715775237909,158.42042026,9.999e-05,2]
[327066074,1715775256341,585.03376366,9.999e-05,2]
[327066077,1715775541614,24900.0,0.00017348,2]
[327066078,1715775549798,835.08477091,9.999e-05,2]
[327066079,1715775649600,709.0884584,9.999e-05,2]
[327066080,1715775840490,452.424538,0.00017465,2]
[327066082,1715776062813,23105.26112383,0.00017532,2]
[327066083,1715776062838,1794.73887617,0.00017532,2]
[327066097,1715776176355,3000.0,0.00017531,2]
[327066122,1715776232167,-905.523408,0.00018133,2]
[327066124,1715776232177,-2677.50168314,0.00018134,2]
[327066126,1715776232187,-154.82968734,0.00018134,2]
[327066127,1715776232200,-8589.73915955,0.00018895,2]
[327066128,1715776232216,-17653.78135444,0.00018895,2]
[327066129,1715776232225,-832.55964497,0.000189,2]
[327066130,1715776232236,-176.45933,0.00019178,2]
[327066131,1715776232246,-2744.93316216,0.00019599,2]
[327066132,1715776232255,-416.7728428,0.00019711,2]
[327066133,1715776232264,-2241.32527988,0.00019999,2]
[327066134,1715776232274,-155.17127202,0.0002,2]
[327066135,1715776232285,-499.86264339,0.0002,2]
[327066136,1715776232295,-6660.33322783,0.0002,2]
[327066137,1715776232304,-1564.87365674,0.00020817,2]
[327066138,1715776232314,-930.46278308,0.00020819,2]
[327066139,1715776232323,-161.31468235,0.00020819,2]
[327066140,1715776232332,-500.0,0.00020913,2]
[327066141,1715776232342,-189.01266046,0.00020913,2]
[327066142,1715776232351,-500.0,0.00020913,2]
[327066143,1715776232361,-500.0,0.00020913,2]
[327066144,1715776232370,-500.0,0.00020913,2]
[327066145,1715776232380,-500.0,0.00020913,2]
[327066146,1715776232389,-500.0,0.00020913,2]
[327066147,1715776232399,-500.0,0.00020913,2]
[327066148,1715776232408,-500.0,0.00020913,2]
[327066149,1715776232418,-500.0,0.00020913,2]
[327066150,1715776232428,-500.0,0.00020913,2]
[327066151,1715776232438,-500.0,0.00020913,2]
[327066152,1715776232451,-500.0,0.00020913,2]
[327066153,1715776232465,-500.0,0.00020913,2]
[327066154,1715776232475,-500.0,0.00020913,2]
[327066155,1715776232485,-500.0,0.00020913,2]
[327066156,1715776232495,-500.0,0.00020913,2]
[327066157,1715776232504,-127.00801253,0.00020913,2]
[327066208,1715776238756,-3060.90965728,0.00018132,2]
[327066210,1715776238768,-105.99671446,0.00020913,2]
[327066223,1715776238886,-266.99527301,0.00020913,2]
[327066225,1715776238901,-500.0,0.00020913,2]
[327066228,1715776238915,-500.0,0.00020913,2]
[327066230,1715776238929,-500.0,0.00020913,2]
[327066232,1715776238941,-500.0,0.00020913,2]
[327066233,1715776238960,-500.0,0.00020913,2]
[327066234,1715776238976,-500.0,0.00020913,2]
[327066235,1715776238990,-500.0,0.00020913,2]
[327066236,1715776239003,-500.0,0.00020913,2]
[327066237,1715776239018,-500.0,0.00020913,2]
[327066238,1715776239033,-500.0,0.00020913,2]
[327066239,1715776239046,-611.5084322,0.00020913,2]
[327066240,1715776239060,-500.0,0.00020913,2]
[327066241,1715776239073,-500.0,0.00020913,2]
[327066242,1715776239087,-500.0,0.00020913,2]
[327066243,1715776239101,-500.0,0.00020913,2]
[327066244,1715776239114,-500.0,0.00020913,2]
[327066245,1715776239127,-500.0,0.00020913,2]
[327066246,1715776239140,-300.0,0.00020913,2]
[327066247,1715776239154,-500.0,0.00020913,2]
[327066248,1715776239167,-153.0,0.00020959,2]
[327066249,1715776239179,-153.0,0.00020959,2]
[327066250,1715776239194,-153.0,0.00020959,2]
[327066251,1715776239213,-153.0,0.00020959,2]
[327066252,1715776239227,-2115.15328249,0.00021,2]
[327066253,1715776239240,-306.0,0.00021096,2]
[327066254,1715776239253,-1228.13424152,0.00021712,2]
[327066255,1715776239265,-155.8623812,0.00021726,2]
[327066256,1715776239278,-647.24,0.00021728,3]
[327066257,1715776239291,-1228.13424148,0.00021738,2]
[327066258,1715776239305,-1228.13424148,0.00021765,2]
[327066259,1715776239319,-1228.13424148,0.00021791,2]
[327066260,1715776239333,-1228.13424148,0.00021817,2]
[327066261,1715776239347,-3462.71186516,0.0002189,2]
[327066262,1715776239365,-523.10635312,0.0002189,2]
[327066263,1715776239379,-154.86062544,0.00021915,2]
[327066264,1715776239393,-40.03302144,0.00021915,2]
[327066265,1715776239411,-368.44162861,0.00021915,2]
[327066266,1715776239425,-200.67889185,0.00021915,2]
[327066267,1715776239439,-1351.1552203,0.00021915,2]
[327066268,1715776239458,-155.26532653,0.00021915,2]
[327066269,1715776239473,-155.23409832,0.00021915,2]
[327066270,1715776239488,-154.92484394,0.00021915,4]
[327066271,1715776239503,-456.80227213,0.00021915,2]
[327066272,1715776239517,-294.30132294,0.00021915,2]
[327066273,1715776239532,-208.47766256,0.00021915,2]
[327066274,1715776239546,-304.50279059,0.00021915,2]
[327066275,1715776239561,-155.76940084,0.00021915,2]
[327066276,1715776239575,-1882.72426358,0.00021915,2]
[327066277,1715776239593,-1833.87001185,0.00021915,2]
[327066278,1715776239608,-176.66444887,0.00021915,2]
[327066279,1715776239622,-328.10708592,0.00021915,2]
[327066280,1715776239636,-261.11334295,0.00021915,2]
[327066281,1715776239654,-213.96088527,0.00021915,2]
[327066282,1715776239668,-192.85109502,0.00021915,2]
[327066283,1715776239682,-534.62412222,0.00021915,2]
[327066284,1715776239703,-166.27321147,0.00021915,2]
[327066285,1715776239723,-296.81185104,0.00021915,2]
[327066286,1715776239739,-309.1714067,0.00021915,2]
[327066287,1715776239755,-214.23357896,0.00021915,2]
[327066288,1715776239769,-658.2721126,0.00021915,2]
[327066289,1715776239783,-836.51075015,0.00021915,2]
[327066290,1715776239800,-643.87125666,0.00021915,2]
[327066291,1715776239815,-160.21659531,0.00021916,2]
[327066292,1715776239829,-706.76969436,0.00021916,6]
[327066294,1715776239843,-1941.76954275,0.00021917,3]
[327066351,1715776240532,-361.45131134,0.00020212,2]
[327066353,1715776240543,-2670.6623437,0.00020742,2]
[327066355,1715776240554,-2670.66234371,0.00021363,2]
[327066357,1715776240564,-13780.59367032,0.00021917,3]
[327066359,1715776240574,-8701.7517919,0.00021917,3]
[327066361,1715776240584,-500.0,0.00021917,2]
[327066363,1715776240594,-429.61752755,0.00021917,2]
[327066365,1715776240604,-500.0,0.00021917,2]
[327066367,1715776240613,-500.0,0.00021917,2]
[327066369,1715776240623,-500.0,0.00021917,2]
[327066371,1715776240633,-500.0,0.00021917,2]
[327066373,1715776240642,-500.0,0.00021917,2]
[327066375,1715776240653,-500.0,0.00021917,2]
[327066377,1715776240662,-533.15023052,0.00021917,2]
[327066379,1715776240672,-500.0,0.00021917,2]
[327066381,1715776240682,-500.0,0.00021917,2]
[327066383,1715776240693,-500.0,0.00021917,2]
[327066384,1715776240708,-500.0,0.00021917,2]
[327066386,1715776240726,-500.0,0.00021917,2]
[327066388,1715776240736,-500.0,0.00021917,2]
[327066390,1715776240745,-500.0,0.00021917,2]
[327066392,1715776240755,-1337.81,0.00021917,2]
[327066394,1715776240768,-500.0,0.00021917,2]
[327066396,1715776240778,-500.0,0.00021917,2]
[327066398,1715776240788,-500.0,0.00021917,2]
[327066400,1715776240797,-151.0,0.00021917,2]
[327066402,1715776240807,-151.0,0.00021917,2]
[327066404,1715776240817,-151.0,0.00021917,2]
[327066406,1715776240826,-151.0,0.00021917,2]
[327066408,1715776240835,-500.0,0.00021917,2]
[327066410,1715776240845,-151.0,0.00021917,2]
[327066412,1715776240855,-151.0,0.00021917,2]
[327066414,1715776240864,-151.0,0.00021917,2]
[327066416,1715776240873,-500.0,0.00021917,2]
[327066418,1715776240883,-187.881753,0.00021917,2]
[327066420,1715776240892,-510.12904745,0.00021917,2]
[327066422,1715776240902,-500.0,0.00021917,2]
[327066423,1715776240911,-506.28115533,0.00021917,2]
[327066425,1715776240920,-508.46671421,0.00021917,2]
[327066427,1715776240930,-509.90506092,0.00021917,2]
[327066429,1715776240939,-1000.0,0.00021917,2]
[327066431,1715776240950,-500.0,0.00021917,2]
[327066434,1715776240965,-1000.0,0.00021917,2]
[327066435,1715776240974,-502.41630377,0.00021917,2]
[327066437,1715776240983,-500.49336216,0.00021917,2]
[327066439,1715776240992,-500.0,0.00021917,2]
[327066441,1715776241001,-500.0,0.00021917,2]
[327066443,1715776241011,-500.0,0.00021917,2]
[327066445,1715776241024,-500.66340275,0.00021917,2]
[327066447,1715776241036,-500.0,0.00021917,2]
[327066449,1715776241046,-500.0,0.00021917,2]
[327066451,1715776241055,-177.66192463,0.00021917,2]
[327066453,1715776241065,-500.0,0.00021917,2]
[327066455,1715776241074,-500.0,0.00021917,2]
[327066457,1715776241083,-363.90857185,0.00021917,2]
[327066460,1715776241102,-136.09142815,0.00021917,2]
[327066462,1715776241111,-500.0,0.00021917,2]
[327066464,1715776241120,-571.57,0.00021917,2]
[327066466,1715776241130,-571.57,0.00021917,2]
[327066468,1715776241140,-571.57,0.00021917,2]
[327066470,1715776241149,-323.82786322,0.00021917,2]
[327066522,1715776241666,-247.74213678,0.00021917,2]
[327066524,1715776241676,-571.57,0.00021917,2]
[327066526,1715776241686,-571.57,0.00021917,2]
[327066528,1715776241696,-571.57,0.00021917,2]
[327066530,1715776241715,-571.57,0.00021917,2]
[327066532,1715776241732,-500.0,0.00021917,2]
[327066534,1715776241741,-2259.85,0.00021917,2]
[327066536,1715776241750,-571.57,0.00021917,2]
[327066538,1715776241762,-1075.35,0.00021917,2]
[327066540,1715776241772,-571.57,0.00021917,2]
[327066542,1715776241781,-571.57,0.00021917,2]
[327066544,1715776241790,-571.57,0.00021917,2]
[327066546,1715776241799,-571.57,0.00021917,2]
[327066548,1715776241808,-571.57,0.00021917,2]
[327066550,1715776241818,-571.57,0.00021917,2]
[327066552,1715776241826,-571.57,0.00021917,2]
[327066554,1715776241836,-571.57,0.00021917,2]
[327066556,1715776241845,-571.57,0.00021917,2]
[327066558,1715776241854,-229.39102418,0.00021917,2]
[327066577,1715776242051,-361.45131134,0.00020488,2]
[327066579,1715776242060,-342.17897582,0.00021917,2]
[327066581,1715776242070,-571.57,0.00021917,2]
[327066583,1715776242080,-500.98553063,0.00021917,2]
[327066585,1715776242089,-571.57,0.00021917,2]
[327066587,1715776242098,-19.78632659,0.00021917,2]
[327066761,1715776243586,-361.45131134,0.00020605,2]
[327066762,1715776243595,-361.45131134,0.00021212,2]
[327066763,1715776243605,-361.45131138,0.00021408,2]
[327066764,1715776243614,-551.78367341,0.00021917,2]
[327066765,1715776243623,-571.57,0.00021917,2]
[327066766,1715776243632,-500.0,0.00021917,2]
[327066767,1715776243641,-571.61546496,0.00021917,2]
[327066768,1715776243651,-1120.22,0.00021917,2]
[327066769,1715776243660,-500.0,0.00021917,2]
[327066771,1715776243669,-500.0,0.00021917,2]
[327066773,1715776243679,-500.0,0.00021917,2]
[327066775,1715776243688,-513.69391553,0.00021917,2]
[327066777,1715776243697,-500.0,0.00021917,2]
[327066779,1715776243715,-171.178552,0.00021917,2]
[327066781,1715776243724,-534.43054866,0.00021917,2]
[327066783,1715776243735,-500.0,0.00021917,2]
[327066785,1715776243745,-500.0,0.00021917,2]
[327066787,1715776243757,-251.79223106,0.00021917,2]
[327066789,1715776243769,-500.0,0.00021917,2]
[327066791,1715776243778,-500.0,0.00021917,2]
[327066793,1715776243787,-500.0,0.00021917,2]
[327066795,1715776243798,-500.0,0.00021917,2]
[327066797,1715776243807,-500.0,0.00021917,2]
[327066799,1715776243816,-500.0,0.00021917,2]
[327066801,1715776243826,-500.0,0.00021917,2]
[327066803,1715776243838,-500.0,0.00021917,2]
[327066805,1715776243847,-500.0,0.00021917,2]
[327066807,1715776243857,-500.0,0.00021917,2]
[327066809,1715776243867,-500.0,0.00021917,2]
[327066810,1715776243876,-500.0,0.00021917,2]
[327066812,1715776243886,-500.0,0.00021917,2]
[327066815,1715776243896,-500.0,0.00021917,2]
[327066817,1715776243906,-500.0,0.00021917,2]
[327066819,1715776243916,-500.0,0.00021917,2]
[327066821,1715776243925,-488.88917306,0.00021917,2]
[327066823,1715776243939,-11.11082694,0.00021917,2]
[327066825,1715776243949,-500.0,0.00021917,2]
[327066827,1715776243966,-500.0,0.00021917,2]
[327066829,1715776243976,-500.0,0.00021917,2]
[327066831,1715776243986,-500.0,0.00021917,2]
[327066833,1715776243998,-705.71,0.00021917,2]
[327066835,1715776244007,-500.0,0.00021917,2]
[327066837,1715776244016,-300.0,0.00021917,2]
[327066839,1715776244027,-500.0,0.00021917,2]
[327066841,1715776244036,-223.92396934,0.00021917,2]
[327066843,1715776244046,-501.46311696,0.00021917,2]
[327066846,1715776244056,-500.0,0.00021917,2]
[327066847,1715776244066,-346.51616131,0.00021917,2]
[327066850,1715776244079,-153.48383869,0.00021917,2]
[327066852,1715776244089,-397.81282009,0.00021917,2]
[327066854,1715776244099,-625.0,0.00021917,2]
[327066856,1715776244108,-500.0,0.00021917,2]
[327066857,1715776244118,-500.0,0.00021917,2]
[327066859,1715776244128,-500.0,0.00021917,2]
[327066861,1715776244138,-640.48594703,0.00021917,2]
[327066863,1715776244147,-511.55,0.00021917,2]
[327066865,1715776244157,-281.62275983,0.00021917,2]
[327067225,1715776248192,-1871.17037039,0.00021915,2]
[327067227,1715776248202,-1564.87365674,0.00021916,2]
[327067229,1715776248211,-2673.87693148,0.00021916,2]
[327067231,1715776248221,-218.37724017,0.00021917,2]
[327067233,1715776248230,-500.0,0.00021917,2]
[327067235,1715776248239,-500.0,0.00021917,2]
[327067237,1715776248249,-500.0,0.00021917,2]
[327067239,1715776248258,-334.03125512,0.00021917,2]
[327067241,1715776248268,-752.14,0.00021917,2]
[327067243,1715776248278,-500.0,0.00021917,2]
[327067245,1715776248288,-293.50658049,0.00021917,2]
[327067247,1715776248297,-601.83666588,0.00021917,2]
[327067249,1715776248306,-705.63,0.00021917,2]
[327067251,1715776248315,-500.0,0.00021917,2]
[327067253,1715776248324,-500.0,0.00021917,2]
[327067255,1715776248334,-500.0,0.00021917,2]
[327067257,1715776248343,-500.0,0.00021917,2]
[327067259,1715776248352,-500.0,0.00021917,2]
[327067260,1715776248361,-500.0,0.00021917,2]
[327067262,1715776248370,-500.0,0.00021917,2]
[327067265,1715776248380,-2334.77,0.00021917,2]
[327067266,1715776248390,-500.0,0.00021917,2]
[327067268,1715776248400,-500.0,0.00021917,2]
[327067270,1715776248409,-158.21638616,0.00021917,2]
[327067272,1715776248419,-500.0,0.00021917,2]
[327067274,1715776248429,-151.0,0.00021917,2]
[327067277,1715776248439,-500.0,0.00021917,2]
[327067278,1715776248448,-500.0,0.00021917,2]
[327067281,1715776248457,-500.0,0.00021917,2]
[327067283,1715776248467,-500.0,0.00021917,2]
[327067285,1715776248476,-543.2,0.00021917,2]
[327067286,1715776248485,-500.0,0.00021917,2]
[327067288,1715776248494,-500.0,0.00021917,2]
[327067291,1715776248504,-609.37,0.00021917,2]
[327067293,1715776248513,-500.0,0.00021917,2]
[327067295,1715776248522,-500.0,0.00021917,2]
[327067296,1715776248532,-500.0,0.00021917,2]
[327067297,1715776248541,-244.42511372,0.00021917,2]
[327067298,1715776248551,-500.0,0.00021917,2]
[327067299,1715776248560,-243.30009847,0.00021917,2]
[327067300,1715776248570,-501.10201678,0.00021917,2]
[327067301,1715776248578,-500.0,0.00021917,2]
[327067302,1715776248588,-500.79557238,0.00021917,2]
[327067303,1715776248597,-502.33216634,0.00021917,2]
[327067304,1715776248606,-502.31790034,0.00021917,2]
[327067305,1715776248615,-500.0,0.00021917,2]
[327067306,1715776248624,-500.0,0.00021917,2]
[327067307,1715776248633,-500.0,0.00021917,2]
[327067308,1715776248641,-500.0,0.00021917,2]
[327067309,1715776248650,-500.0,0.00021917,2]
[327067310,1715776248659,-500.31130539,0.00021917,2]
[327067311,1715776248668,-500.0,0.00021917,2]
[327067312,1715776248677,-500.0,0.00021917,2]
[327067313,1715776248686,-500.0,0.00021917,2]
[327067314,1715776248695,-500.0,0.00021917,2]
[327067315,1715776248705,-500.0,0.00021917,2]
[327067316,1715776248714,-646.29,0.00021917,2]
[327067317,1715776248722,-915.0,0.00021917,2]
[327067318,1715776248731,-500.0,0.00021917,2]
[327067319,1715776248740,-500.0,0.00021917,2]
[327067320,1715776248748,-500.0,0.00021917,2]
[327067321,1715776248757,-500.0,0.00021917,2]
[327067322,1715776248766,-500.0,0.00021917,2]
[327067323,1715776248775,-500.0,0.00021917,2]
[327067324,1715776248785,-267.14875389,0.00021917,2]
[327067325,1715776248794,-187.40076566,0.00021917,2]
[327067326,1715776248803,-500.0,0.00021917,2]
[327067327,1715776248813,-500.0,0.00021917,2]
[327067328,1715776248822,-500.0,0.00021917,2]
[327067329,1715776248831,-500.0,0.00021917,2]
[327067330,1715776248840,-503.69691383,0.00021917,2]
[327067331,1715776248849,-500.0,0.00021917,2]
[327067332,1715776248859,-500.0,0.00021917,2]
[327067333,1715776248868,-500.0,0.00021917,2]
[327067334,1715776248878,-500.0,0.00021917,2]
[327067335,1715776248888,-795.35,0.00021917,2]
[327067336,1715776248897,-500.0,0.00021917,2]
[327067337,1715776248907,-500.0,0.00021917,2]
[327067338,1715776248916,-1683.04,0.00021917,2]
[327067339,1715776248925,-500.0,0.00021917,2]
[327067340,1715776248935,-500.0,0.00021917,2]
[327067341,1715776248944,-500.0,0.00021917,2]
[327067342,1715776248953,-500.0,0.00021917,2]
[327067343,1715776248973,-500.0,0.00021917,2]
[327067344,1715776248982,-696.91,0.00021917,2]
[327067345,1715776248992,-500.0,0.00021917,2]
[327067346,1715776249002,-500.0,0.00021917,2]
[327067347,1715776249016,-500.0,0.00021917,2]
[327067348,1715776249027,-791.24,0.00021917,2]
[327067349,1715776249036,-237.832569,0.00021917,2]
[327067351,1715776249046,-237.832569,0.00021917,2]
[327067353,1715776249056,-237.832569,0.00021917,2]
[327067355,1715776249065,-237.832569,0.00021917,2]
[327067357,1715776249075,-237.832569,0.00021917,2]
[327067359,1715776249084,-237.832569,0.00021917,2]
[327067360,1715776249094,-237.832569,0.00021917,2]
[327067362,1715776249103,-237.832569,0.00021917,2]
[327067364,1715776249113,-500.0,0.00021917,2]
[327067366,1715776249123,-237.832569,0.00021917,2]
[327067369,1715776249133,-237.832569,0.00021917,2]
[327067370,1715776249142,-237.832569,0.00021917,2]
[327067372,1715776249152,-237.832569,0.00021917,2]
[327067374,1715776249162,-237.832569,0.00021917,2]
[327067377,1715776249172,-500.0,0.00021917,2]
[327067379,1715776249181,-237.832569,0.00021917,2]
[327067381,1715776249192,-237.832569,0.00021917,2]
[327067382,1715776249201,-500.0,0.00021917,2]
[327067384,1715776249211,-237.832569,0.00021917,2]
[327067386,1715776249221,-543.12,0.00021917,2]
[327067388,1715776249231,-237.832569,0.00021917,2]
[327067390,1715776249240,-500.0,0.00021917,2]
[327067393,1715776249250,-237.832569,0.00021917,2]
[327067395,1715776249260,-237.832569,0.00021917,2]
[327067397,1715776249270,-237.832568,0.00021917,2]
[327067399,1715776249279,-3568.68,0.00021917,2]
[327067401,1715776249288,-503.14216664,0.00021917,2]
[327067403,1715776249297,-500.0,0.00021917,2]
[327067405,1715776249306,-3191.5,0.00021917,2]
[327067407,1715776249316,-1123.5,0.00021917,2]
[327067409,1715776249325,-500.0,0.00021917,2]
[327067411,1715776249334,-500.0,0.00021917,2]
[327067413,1715776249343,-500.0,0.00021917,2]